bitfinex-derivatives/quotes_ETHF0:USTF0_20250420
["timestamp","ask_amount","ask_price","bid_price","bid_amount"]
[1745122043635,4.20037,1612.1,1612.0,0.8316]
[1745122043836,4.20037,1612.1,1612.0,1.61692651]
[1745122044037,5.95257,1612.1,1612.0,1.61692651]
[1745122044229,5.95257,1612.1,1612.0,3.84492651]
[1745122044538,5.95257,1612.1,1612.0,5.53562651]
[1745122053446,5.95257,1612.1,1612.0,6.77687651]
[1745122053743,2.74477,1612.1,1612.0,6.77687651]
[1745122067352,2.74477,1612.1,1612.0,7.60667136]
[1745122072052,2.74477,1612.1,1612.0,7.60719555]
[1745122073654,5.95257,1612.1,1612.0,7.60719555]
[1745122074055,5.95257,1612.1,1612.0,7.6073891]
[1745122077865,5.95257,1612.1,1612.0,7.60745948]
[1745122080057,4.20037,1612.1,1612.0,7.60745948]
[1745122080561,4.20037,1612.1,1612.0,7.60752141]
[1745122084371,8.12437,1612.1,1612.0,7.60752141]
[1745122084673,8.12437,1612.1,1612.0,5.99155]
[1745122085267,8.12437,1612.1,1612.0,7.60831568]
[1745122085763,4.91657,1612.1,1612.0,7.60831568]
[1745122086268,8.12437,1612.1,1612.0,7.60831568]
[1745122086471,8.12437,1612.1,1612.0,7.6083541]
[1745122086864,8.12437,1612.1,1612.0,7.60835306]
[1745122088571,4.91657,1612.1,1612.0,7.60835306]
[1745122089758,4.91657,1612.1,1612.0,7.60832731]
[1745122090365,4.91657,1612.1,1612.0,7.60831382]
[1745122093062,4.91657,1612.1,1612.0,7.60828031]
[1745122094078,4.91657,1612.1,1612.0,7.60827299]
[1745122096079,4.91657,1612.1,1612.0,7.60826328]
[1745122098671,6.61187,1612.1,1612.0,7.60826328]
[1745122100582,6.61187,1612.1,1612.0,6.77762993]
[1745122101768,6.61187,1612.1,1612.0,7.60824625]
[1745122102379,6.61187,1612.1,1612.0,7.60824095]
[1745122102579,3.924,1612.1,1612.0,8.60087095]
[1745122103382,3.924,1612.1,1612.0,8.60084436]
[1745122104582,4.91657,1612.1,1612.0,7.60821436]
[1745122105385,4.91657,1612.1,1612.0,7.60815807]
[1745122106072,4.91657,1612.1,1612.0,8.60078807]
[1745122106275,3.924,1612.1,1612.0,8.60078807]
[1745122108384,4.20035,1612.2,1612.0,8.60078807]
[1745122108586,4.20035,1612.2,1612.1,3.31242814]
[1745122108786,0.99255,1612.2,1612.1,4.09850807]
[1745122108985,0.99255,1612.2,1612.1,5.33975807]
[1745122109184,0.99255,1612.2,1612.1,5.33969767]
[1745122110080,9.85759,1612.3,1612.1,5.33969767]
[1745122110280,8.12329,1612.3,1612.2,2.43040974]
[1745122110483,8.12329,1612.3,1612.2,3.26220974]
[1745122110682,8.12329,1612.3,1612.2,4.50345974]
[1745122110879,8.12329,1612.3,1612.2,4.04827914]
[1745122111079,8.12329,1612.3,1612.2,6.27627914]
[1745122111286,8.12329,1612.3,1612.2,7.51752914]
[1745122112892,8.12329,1612.3,1612.2,8.51003914]
[1745122114587,7.1308,1612.3,1612.2,8.51003914]
[1745122114890,8.12325,1612.3,1612.2,8.50939329]
[1745122115102,7.1308,1612.3,1612.2,8.50939329]
[1745122115594,8.12325,1612.3,1612.2,8.50939329]
[1745122115791,9.79905,1612.3,1612.2,8.50939329]
[1745122117097,9.79905,1612.3,1612.2,7.67963993]
[1745122118195,9.79905,1612.3,1612.2,6.43838993]
[1745122119691,8.8066,1612.3,1612.2,6.43838993]
[1745122119887,3.923,1612.3,1612.2,7.26788022]
[1745122120083,3.923,1612.3,1612.2,7.67963993]
[1745122120392,3.923,1612.3,1612.2,8.50907435]
[1745122120997,4.91545,1612.3,1612.2,8.50907435]
[1745122122295,4.91545,1612.3,1612.2,8.5090093]
[1745122122597,3.923,1612.3,1612.2,8.5090093]
[1745122124093,3.923,1612.3,1612.2,7.67963993]
[1745122124298,3.923,1612.3,1612.2,8.50894164]
[1745122126000,3.923,1612.3,1612.2,8.50884555]
[1745122127798,2.66562,1612.4,1612.2,8.50884555]
[1745122127799,3.2078,1612.5,1612.2,13.36833555]
[1745122128008,3.2078,1612.5,1612.4,0.99238]
[1745122128400,4.8114,1612.5,1612.4,4.76863]
[1745122128600,1.6036,1612.5,1612.4,4.76863]
[1745122128895,1.6036,1612.5,1612.4,5.59768982]
[1745122129101,1.6036,1612.5,1612.4,5.55470993]
[1745122129303,2.59592,1612.5,1612.4,7.78270993]
[1745122130499,1.6036,1612.5,1612.4,7.78270993]
[1745122130699,2.59592,1612.5,1612.4,7.78270993]
[1745122130899,1.6036,1612.5,1612.4,7.78270993]
[1745122135909,1.6036,1612.5,1612.4,6.79032993]
[1745122136705,2.59592,1612.5,1612.4,4.25532993]
[1745122136911,5.80372,1612.5,1612.4,4.25532993]
[1745122138705,5.80372,1612.5,1612.4,3.01407993]
[1745122139304,5.80372,1612.5,1612.4,0.78607993]
[1745122141719,0.99251,1612.2,1612.1,7.5108]
[1745122141904,0.99251,1612.2,1612.1,9.58126175]
[1745122142312,2.64961,1612.2,1612.1,9.58126175]
[1745122142615,2.64961,1612.2,1612.1,10.36596905]
[1745122144314,3.49941,1612.2,1612.1,2.85519164]
[1745122146211,3.49941,1612.2,1612.1,2.85513591]
[1745122146412,3.49941,1612.2,1612.1,2.02594527]
[1745122146624,3.49941,1612.2,1612.1,2.85508506]
[1745122146912,3.49941,1612.2,1612.1,1.61383506]
[1745122147317,3.49941,1612.2,1612.1,1.61378677]
[1745122148114,3.49941,1612.2,1612.1,0.78469527]
[1745122162427,3.49941,1612.2,1612.1,2.38109527]
[1745122167232,3.49941,1612.2,1612.1,3.21079557]
[1745122167835,3.49941,1612.2,1612.1,3.21080531]
[1745122169635,3.49941,1612.2,1612.1,2.38109527]
[1745122169823,3.49941,1612.2,1612.1,3.21131564]
[1745122171536,2.64961,1612.2,1612.1,4.06542106]
[1745122173037,2.64961,1612.2,1612.1,1.61492106]
[1745122173239,3.46971,1612.2,1612.1,1.61492106]
[1745122173638,4.27671,1612.2,1612.1,0.78469527]
[1745122174339,3.46971,1612.2,1612.1,0.78469527]
[1745122174531,3.46971,1612.2,1612.1,2.52069527]
[1745122177239,3.46971,1612.2,1612.1,0.78469527]
[1745122180137,6.67751,1612.2,1612.1,0.78469527]
[1745122180942,0.99257,1612.1,1612.0,2.4024]
[1745122181132,2.72987,1612.1,1612.0,4.47385592]
[1745122181543,2.72987,1612.1,1612.0,5.25945688]
[1745122182141,2.72987,1612.1,1612.0,7.48745688]
[1745122182845,2.72987,1612.1,1612.0,7.48740971]
[1745122183444,6.65187,1612.1,1612.0,7.48740971]
[1745122186654,6.65187,1612.1,1612.0,7.48738135]
[1745122186953,6.65187,1612.1,1612.0,6.24613135]
[1745122187249,6.65187,1612.1,1612.0,5.41600096]
[1745122187448,6.65187,1612.1,1612.0,6.24610964]
[1745122190253,4.91457,1612.1,1612.0,7.48735964]
[1745122190660,4.91457,1612.1,1612.0,7.48733573]
[1745122192251,4.91457,1612.1,1612.0,7.48734921]
[1745122194161,4.91457,1612.1,1612.0,7.48737871]
[1745122196064,4.91457,1612.1,1612.0,7.48742324]
[1745122199765,4.91457,1612.1,1612.0,6.65725096]
[1745122199961,4.91457,1612.1,1612.0,7.48755921]
[1745122200164,4.91457,1612.1,1612.0,5.25955921]
[1745122201268,6.50717,1612.1,1612.0,7.48755921]
[1745122202773,6.50717,1612.1,1612.0,6.24630921]
[1745122202961,6.50717,1612.1,1612.0,6.24649692]
[1745122204975,6.50717,1612.1,1612.0,6.24655145]
[1745122208781,6.50717,1612.1,1612.0,6.24656103]
[1745122210582,6.50717,1612.1,1612.0,6.24656413]
[1745122212481,6.50717,1612.1,1612.0,6.24690266]
[1745122215083,9.71497,1612.1,1612.0,6.24690266]
[1745122215486,9.71497,1612.1,1612.0,7.48815266]
[1745122216081,9.71497,1612.1,1612.0,7.48814309]
[1745122219087,6.50717,1612.1,1612.0,7.48814309]
[1745122219974,6.50717,1612.1,1612.0,7.48815721]
[1745122221783,6.50717,1612.1,1612.0,6.65760163]
[1745122221984,6.50717,1612.1,1612.0,7.48816261]
[1745122223889,6.50717,1612.1,1612.0,6.65760163]
[1745122225793,6.50717,1612.1,1612.0,7.48818648]
[1745122227680,6.50717,1612.1,1612.0,7.48821641]
[1745122230897,6.50717,1612.1,1612.0,6.24696641]
[1745122231292,6.50717,1612.1,1612.0,7.48821641]
[1745122231595,6.50717,1612.1,1612.0,7.48826779]
[1745122232195,6.50717,1612.1,1612.0,7.48827364]
[1745122233398,6.50717,1612.1,1612.0,7.48829282]
[1745122237199,6.50717,1612.1,1612.0,7.48829792]
[1745122237393,6.50717,1612.1,1612.0,7.48829805]
[1745122242906,6.50717,1612.1,1612.0,7.48832188]
[1745122244913,6.50717,1612.1,1612.0,7.48832012]
[1745122246718,6.50717,1612.1,1612.0,7.48833062]
[1745122248612,6.50717,1612.1,1612.0,7.4883542]
[1745122250118,6.50717,1612.1,1612.0,5.2603542]
[1745122251322,6.50717,1612.1,1612.0,7.4883542]
[1745122254324,6.50717,1612.1,1612.0,7.48835455]
[1745122255625,6.50717,1612.1,1612.0,7.48835416]
[1745122256016,6.50717,1612.1,1612.0,6.65760163]
[1745122256212,6.50717,1612.1,1612.0,7.48835488]
[1745122257917,6.50717,1612.1,1612.0,6.65760163]
[1745122258222,6.50717,1612.1,1612.0,7.48835599]
[1745122258918,6.50717,1612.1,1612.0,4.64890599]
[1745122261130,6.50717,1612.1,1612.0,4.6489036]
[1745122261426,6.50717,1612.1,1612.0,6.2717036]
[1745122262625,3.2078,1612.2,1612.0,7.5129536]
[1745122262830,26.40920333,1612.4,1612.1,4.2264436]
[1745122263027,26.40920333,1612.4,1612.2,3.24537793]
[1745122263229,26.40920333,1612.4,1612.3,3.2338167]
[1745122263430,26.40920333,1612.4,1612.3,2.40315163]
[1745122263636,26.40920333,1612.4,1612.3,3.64440163]
[1745122265423,14.0272,1612.4,1612.3,3.64440163]
[1745122267431,8.1192,1612.4,1612.3,3.64440163]
[1745122268729,7.1268,1612.4,1612.3,3.64440163]
[1745122268928,7.1268,1612.4,1612.3,4.63685163]
[1745122269728,8.11918,1612.4,1612.3,3.64440163]
[1745122271931,8.11918,1612.4,1612.3,4.63685163]
[1745122272533,8.11918,1612.4,1612.3,3.64440163]
[1745122273931,8.11918,1612.4,1612.3,4.63685163]
[1745122274133,8.11918,1612.4,1612.3,3.64440163]
[1745122283040,8.11918,1612.4,1612.3,4.63685163]
[1745122284445,8.11918,1612.4,1612.3,3.64440163]
[1745122285044,8.11918,1612.4,1612.3,4.63685163]
[1745122286148,8.11918,1612.4,1612.3,3.64440163]
[1745122291050,8.11918,1612.4,1612.3,2.40315163]
[1745122291251,8.11918,1612.4,1612.3,3.64440163]
[1745122291852,8.11918,1612.4,1612.3,4.47417921]
[1745122294352,9.72688,1612.4,1612.3,4.4748565]
[1745122296854,9.72688,1612.4,1612.3,5.4673065]
[1745122297055,3.2078,1612.4,1612.3,5.4673065]
[1745122297251,3.918,1612.5,1612.3,5.4673065]
[1745122297453,4.91036,1612.5,1612.4,5.25256528]
[1745122297851,4.91036,1612.5,1612.4,7.27976691]
[1745122298052,4.91036,1612.5,1612.4,7.27973628]
[1745122298357,4.91022,1612.7,1612.6,0.99225]
[1745122298647,3.918,1612.7,1612.6,1.82207255]
[1745122298853,3.918,1612.7,1612.6,3.84927418]
[1745122299153,3.918,1612.7,1612.6,4.72257418]
[1745122299457,4.9102,1612.7,1612.6,3.73031418]
[1745122299758,4.9102,1612.7,1612.6,5.46721418]
[1745122300050,4.9102,1612.7,1612.6,5.46669739]
[1745122300956,4.9102,1612.7,1612.6,5.46638038]
[1745122301257,6.56,1612.7,1612.6,4.63740163]
[1745122301452,6.56,1612.7,1612.6,0.78595163]
[1745122302548,0.99236,1612.5,1612.3,0.99241]
[1745122302748,0.99236,1612.5,1612.4,0.8289021]
[1745122303053,0.99236,1612.5,1612.4,3.0569021]
[1745122303259,2.59136,1612.5,1612.4,3.0569021]
[1745122303859,2.59136,1612.5,1612.4,2.228]
[1745122304057,1.599,1612.5,1612.3,2.5237]
[1745122304359,2.59138,1612.4,1612.3,3.76495]
[1745122304559,2.59138,1612.4,1612.3,4.59387864]
[1745122305256,2.59138,1612.4,1612.3,3.76495]
[1745122305454,2.59138,1612.4,1612.3,4.59388506]
[1745122305653,2.59138,1612.4,1612.3,4.59388378]
[1745122305855,2.59138,1612.4,1612.3,3.76495]
[1745122306255,2.59138,1612.4,1612.3,4.59388887]
[1745122307248,2.59138,1612.4,1612.3,3.76495]
[1745122308362,2.59138,1612.4,1612.3,4.59391007]
[1745122309363,2.59138,1612.4,1612.3,3.76495]
[1745122309564,2.59138,1612.4,1612.3,4.59392963]
[1745122309969,2.59138,1612.4,1612.3,3.76495]
[1745122310562,2.59138,1612.4,1612.3,4.59392685]
[1745122313265,2.59138,1612.4,1612.3,4.59394717]
[1745122313462,3.917,1612.5,1612.3,5.58634717]
[1745122313658,4.90937,1612.5,1612.4,1.6829]
[1745122314062,4.90937,1612.5,1612.4,3.75313728]
[1745122314260,4.90937,1612.5,1612.4,5.98113728]
[1745122314560,4.90937,1612.5,1612.4,6.7577129]
[1745122315265,4.90937,1612.5,1612.4,4.5297129]
[1745122316069,4.90937,1612.5,1612.4,6.7577129]
[1745122320172,4.90937,1612.5,1612.4,4.5297129]
[1745122320667,4.90937,1612.5,1612.4,4.529772]
[1745122321168,4.90937,1612.5,1612.4,6.757772]
[1745122321972,4.90937,1612.5,1612.4,6.75779019]
[1745122323872,4.90937,1612.5,1612.4,6.75782599]
[1745122325773,4.90937,1612.5,1612.4,6.75790111]
[1745122327565,4.90937,1612.5,1612.4,5.92872562]
[1745122327764,4.90937,1612.5,1612.4,6.75799062]
[1745122328276,4.90937,1612.5,1612.4,7.75037062]
[1745122328468,3.917,1612.5,1612.4,7.75039462]
[1745122328668,4.90932,1612.5,1612.4,6.75801462]
[1745122333478,4.90932,1612.5,1612.4,6.75851561]
[1745122335369,4.90932,1612.5,1612.4,6.75855295]
[1745122335979,3.917,1612.5,1612.4,7.75093295]
[1745122337079,4.90932,1612.5,1612.4,7.75093295]
[1745122339882,3.917,1612.5,1612.4,7.75093295]
[1745122340682,3.917,1612.5,1612.4,8.60513295]
[1745122340884,4.90924,1612.7,1612.4,7.61275295]
[1745122341178,6.52104,1612.7,1612.6,0.99226]
[1745122341878,6.52104,1612.7,1612.6,1.76883562]
[1745122342075,6.52104,1612.7,1612.6,3.46193562]
[1745122344988,2.60404,1612.7,1612.6,3.46193562]
[1745122346183,1.6118,1612.7,1612.6,3.46193562]
[1745122348383,2.604,1612.7,1612.6,3.46193562]
[1745122349986,3.4708,1612.7,1612.6,3.46193562]
[1745122350579,2.4786,1612.7,1612.6,3.46193562]
[1745122350884,3.4708,1612.7,1612.6,3.46193562]
[1745122351285,2.4786,1612.7,1612.6,3.46193562]
[1745122351583,3.4708,1612.7,1612.6,3.46193562]
[1745122351779,3.4708,1612.7,1612.6,2.46967562]
[1745122351981,3.4708,1612.7,1612.6,0.77657562]
[1745122353589,7.3868,1612.7,1612.6,0.77657562]
[1745122364691,7.3868,1612.7,1612.6,2.01782562]
[1745122365086,3.4708,1612.7,1612.6,2.01782562]
[1745122365286,7.3868,1612.7,1612.6,2.01782562]
[1745122368299,7.3868,1612.7,1612.6,2.84812639]
[1745122369602,7.3868,1612.7,1612.6,2.84821421]
[1745122370095,7.3868,1612.7,1612.6,2.84821422]
[1745122372600,7.3868,1612.7,1612.6,3.73812562]
[1745122373103,7.3868,1612.7,1612.6,4.56871384]
[1745122373403,7.3868,1612.7,1612.6,3.73812562]
[1745122374701,7.3868,1612.7,1612.6,4.56862741]
[1745122375801,7.3868,1612.7,1612.6,4.56862569]
[1745122377700,7.3868,1612.7,1612.6,4.56862144]
[1745122380997,7.3868,1612.7,1612.6,1.60707144]
[1745122381196,7.3868,1612.7,1612.6,1.60706979]
[1745122382598,7.3868,1612.7,1612.6,0.77657562]
[1745122382803,7.3868,1612.7,1612.6,1.60706809]
[1745122384709,7.3868,1612.7,1612.6,0.77657562]
[1745122385313,10.5946,1612.7,1612.6,0.77657562]
[1745122386712,9.7278,1612.7,1612.6,2.01782562]
[1745122386915,9.7278,1612.7,1612.6,4.49082562]
[1745122390319,10.5526,1612.7,1612.6,4.49082562]
[1745122394527,7.3448,1612.7,1612.6,4.49082562]
[1745122394720,10.5526,1612.7,1612.6,4.49082562]
[1745122397926,9.7278,1612.7,1612.6,4.49082562]
[1745122400028,8.116,1612.7,1612.6,4.49082562]
[1745122409326,11.14075333,1612.9,1612.6,10.07232421]
[1745122409533,4.6516017,1612.9,1612.8,2.99214]
[1745122409833,4.6516017,1612.9,1612.8,4.59920421]
[1745122410139,4.6516017,1612.9,1612.8,11.28040421]
[1745122410442,4.6516017,1612.9,1612.8,6.28040421]
[1745122411034,4.6516017,1612.9,1612.8,7.0877834]
[1745122411636,4.6516017,1612.9,1612.8,7.08721873]
[1745122412240,4.6516017,1612.9,1612.8,7.08714368]
[1745122412442,4.6516017,1612.9,1612.8,6.25901562]
[1745122412636,4.6516017,1612.9,1612.8,7.08714364]
[1745122413444,4.6516017,1612.9,1612.8,6.25901562]
[1745122413636,4.6516017,1612.9,1612.8,7.08710285]
[1745122413941,4.6516017,1612.9,1612.8,9.46681562]
[1745122414242,4.6516017,1612.9,1612.8,10.29490289]
[1745122415043,2.67133,1613.2,1613.0,0.99198]
[1745122415337,2.67133,1613.2,1613.1,3.4056]
[1745122415540,2.67133,1613.2,1613.1,4.18217562]
[1745122417944,1.6794,1613.2,1613.1,5.17412562]
[1745122418845,1.6794,1613.2,1613.1,4.39755]
[1745122420545,2.67129,1613.2,1613.1,3.4056]
[1745122421143,2.67129,1613.2,1613.1,4.39755]
[1745122421449,2.67129,1613.2,1613.1,3.4056]
[1745122423445,2.67129,1613.2,1613.1,0.8658]
[1745122429148,0.99177,1613.4,1613.2,0.99186]
[1745122429348,0.99177,1613.4,1613.3,2.4258]
[1745122429547,0.99177,1613.4,1613.3,3.2221]
[1745122429943,2.62377,1613.4,1613.3,3.2221]
[1745122430145,1.632,1613.4,1613.3,4.21393]
[1745122430645,1.632,1613.4,1613.3,4.9875992]
[1745122434243,2.62377,1613.4,1613.3,3.9957692]
[1745122435850,2.62377,1613.4,1613.3,4.9875992]
[1745122437051,1.632,1613.4,1613.3,4.9875992]
[1745122437254,2.62377,1613.4,1613.3,3.1608692]
[1745122437552,2.62377,1613.4,1613.3,0.7736692]
[1745122439157,2.62377,1613.4,1613.3,3.9814692]
[1745122440055,2.62377,1613.4,1613.3,0.7736692]
[1745122440255,2.62377,1613.4,1613.3,3.9814692]
[1745122440656,2.62377,1613.4,1613.3,4.7817692]
[1745122441549,2.62377,1613.4,1613.3,3.1831692]
[1745122441860,2.62377,1613.4,1613.3,6.3909692]
[1745122444061,2.62377,1613.4,1613.3,3.1831692]
[1745122444363,2.62377,1613.4,1613.3,6.3909692]
[1745122446065,2.62377,1613.4,1613.3,0.7736692]
[1745122446277,3.42597,1613.4,1613.3,0.7736692]
[1745122447051,0.99189,1613.2,1613.1,6.5764]
[1745122447260,0.99189,1613.2,1613.1,7.40496579]
[1745122447569,0.99189,1613.2,1613.1,8.18119045]
[1745122448667,0.99189,1613.2,1613.1,9.17314045]
[1745122448966,0.99189,1613.2,1613.1,8.34457466]
[1745122449156,0.99189,1613.2,1613.1,9.17323123]
[1745122450366,0.99189,1613.2,1613.1,8.18128123]
[1745122453567,0.99189,1613.2,1613.1,4.97348123]
[1745122453864,0.99189,1613.2,1613.1,8.18128123]
[1745122454666,0.99189,1613.2,1613.1,8.18150557]
[1745122456069,0.99189,1613.2,1613.1,9.17345557]
[1745122456567,0.99189,1613.2,1613.1,8.18150557]
[1745122457363,2.65419,1613.2,1613.1,8.18161205]
[1745122458667,2.65419,1613.2,1613.1,0.77622466]
[1745122458970,3.46299,1613.2,1613.1,0.77622466]
[1745122471783,2.65419,1613.2,1613.1,0.77622466]
[1745122471980,2.65419,1613.2,1613.1,1.60102466]
[1745122473185,2.65419,1613.2,1613.1,2.43032466]
[1745122477381,2.65419,1613.2,1613.1,1.6541]
[1745122477576,2.65419,1613.2,1613.1,2.4308763]
[1745122486789,0.99189,1613.2,1613.1,2.4308763]
[1745122487195,0.99189,1613.2,1613.1,4.0758763]
[1745122499000,0.99189,1613.2,1613.1,4.96537539]
[1745122501203,0.99189,1613.2,1613.1,4.9653811]
[1745122501503,0.99189,1613.2,1613.1,4.96538086]
[1745122510809,2.68819,1613.2,1613.1,4.96538086]
[1745122510998,2.68819,1613.2,1613.1,1.66631155]
[1745122511199,4.35879,1613.2,1613.1,1.66631155]
[1745122512605,11.5747,1613.2,1612.9,3.3316]
[1745122512814,4.22844,1613.1,1612.8,5.852]
[1745122513009,0.99208,1612.9,1612.8,5.852]
[1745122513310,0.99208,1612.9,1612.8,6.73295191]
[1745122513508,3.53808,1612.9,1612.8,6.73295191]
[1745122514107,3.53808,1612.9,1612.8,5.852]
[1745122516611,0.99214,1612.8,1612.7,4.0744]
[1745122516811,2.70894,1612.8,1612.7,5.6792]
[1745122521710,2.70894,1612.8,1612.7,2.4714]
[1745122521906,2.70894,1612.8,1612.7,5.6792]
[1745122522715,2.70894,1612.8,1612.7,2.4714]
[1745122522923,2.70894,1612.8,1612.7,5.6792]
[1745122525318,2.70894,1612.8,1612.7,6.44688593]
[1745122525616,2.70894,1612.8,1612.7,3.23908593]
[1745122525816,2.70894,1612.8,1612.7,6.44688593]
[1745122526619,2.70894,1612.8,1612.7,3.23908593]
[1745122526919,2.70894,1612.8,1612.7,6.44688593]
[1745122527719,2.70894,1612.8,1612.7,3.23908593]
[1745122527912,2.70894,1612.8,1612.7,6.44688593]
[1745122528313,2.70894,1612.8,1612.7,3.23908593]
[1745122528512,2.70894,1612.8,1612.7,6.44688593]
[1745122530918,2.70894,1612.8,1612.7,3.23908593]
[1745122531120,2.70894,1612.8,1612.7,6.44688593]
[1745122531421,2.70894,1612.8,1612.7,3.23908593]
[1745122531621,2.70894,1612.8,1612.7,6.44688593]
[1745122534609,9.821,1613.0,1612.7,6.44688593]
[1745122534813,12.45406,1613.0,1612.8,1.57518593]
[1745122535010,12.45406,1613.0,1612.9,1.6266]
[1745122535216,12.45406,1613.0,1612.9,2.4734]
[1745122538921,12.45406,1613.0,1612.9,3.24186476]
[1745122540030,6.54606,1613.0,1612.9,3.24186476]
[1745122547025,6.54606,1613.0,1612.9,0.76846476]
[1745122547427,7.38006,1613.0,1612.9,0.76846476]
[1745122550228,6.54606,1613.0,1612.9,0.76846476]
[1745122550429,6.54606,1613.0,1612.9,1.58336476]
[1745122551930,6.54606,1613.0,1612.9,0.76846476]
[1745122552137,7.40336,1613.0,1612.9,0.76846476]
[1745122556535,6.54606,1613.0,1612.9,0.76846476]
[1745122557947,4.90506,1613.0,1612.9,2.37936476]
[1745122558132,4.90506,1613.0,1612.9,4.60736476]
[1745122559145,4.90506,1613.0,1612.9,2.37936476]
[1745122560440,6.56526,1613.0,1612.9,2.37936476]
[1745122563434,7.41606,1613.0,1612.9,2.37936476]
[1745122566152,7.41606,1613.0,1612.9,0.76846476]
[1745122567149,9.64406,1613.0,1612.9,0.76846476]
[1745122568142,7.41606,1613.0,1612.9,0.76846476]
[1745122569349,10.62386,1613.0,1612.9,0.76846476]
[1745122569547,0.99225,1612.7,1612.6,2.4045]
[1745122569743,0.99225,1612.7,1612.6,3.2502]
[1745122569952,4.90525,1612.7,1612.6,3.2502]
[1745122570251,4.40036111,1612.7,1612.3,17.35028263]
[1745122570456,0.99232,1612.5,1612.4,3.3368]
[1745122581757,0.99232,1612.5,1612.4,4.09647261]
[1745122593366,2.72222,1612.5,1612.4,4.09647261]
[1745122607484,0.8043,1612.6,1612.4,5.08885261]
[1745122607784,0.99229,1612.6,1612.5,5.93672]
[1745122607984,0.99229,1612.6,1612.5,6.69639261]
[1745122610691,0.99229,1612.6,1612.5,5.70407261]
[1745122611282,3.913,1612.7,1612.5,5.70407261]
[1745122611486,3.913,1612.7,1612.6,3.46416]
[1745122611686,3.913,1612.7,1612.6,4.31316]
[1745122611893,3.913,1612.7,1612.6,5.07283261]
[1745122613383,0.99217,1612.8,1612.6,5.07283261]
[1745122613585,0.99217,1612.8,1612.7,4.7985]
[1745122614091,0.99217,1612.8,1612.7,5.55817261]
[1745122616582,0.99217,1612.8,1612.7,6.55037261]
[1745122624090,0.99217,1612.8,1612.7,5.55817261]
[1745122624285,3.38987,1612.8,1612.7,3.96747261]
[1745122624689,3.38987,1612.8,1612.7,0.75967261]
[1745122628085,3.38987,1612.8,1612.7,3.96747261]
[1745122632395,3.38987,1612.8,1612.7,4.95967261]
[1745122632599,2.58157,1612.8,1612.7,6.65987261]
[1745122633307,0.99217,1612.8,1612.7,6.65987261]
[1745122634810,2.58487,1612.8,1612.7,6.65987261]
[1745122639708,2.58487,1612.8,1612.7,3.45207261]
[1745122639909,2.58487,1612.8,1612.7,6.65987261]
[1745122641309,2.58487,1612.8,1612.7,3.45207261]
[1745122641811,2.58487,1612.8,1612.7,6.65987261]
[1745122647413,2.58487,1612.8,1612.7,3.45207261]
[1745122648006,2.58487,1612.8,1612.7,2.45987261]
[1745122648805,3.38307,1612.8,1612.7,2.45987261]
[1745122649613,3.38307,1612.8,1612.7,0.75967261]
[1745122654615,9.18037,1612.8,1612.7,0.75967261]
[1745122655015,4.18037,1612.8,1612.7,0.75967261]
[1745122660126,6.40837,1612.8,1612.7,0.75967261]
[1745122660913,0.99226,1612.6,1612.5,4.0048]
[1745122661118,4.90426,1612.6,1612.5,4.0048]
[1745122662121,4.90426,1612.6,1612.5,4.76563436]
[1745122662321,4.90426,1612.6,1612.5,6.41693436]
[1745122674229,4.90426,1612.6,1612.5,8.64493436]
[1745122675222,4.90426,1612.6,1612.5,6.41693436]
[1745122676720,4.90426,1612.6,1612.5,3.20913436]
[1745122693846,4.90426,1612.6,1612.5,6.41693436]
[1745122694035,4.90426,1612.6,1612.5,3.20913436]
[1745122694234,4.90426,1612.6,1612.5,6.41693436]
[1745122701142,4.90426,1612.6,1612.5,3.20913436]
[1745122701342,4.90426,1612.6,1612.5,6.41693436]
[1745122702052,4.90426,1612.6,1612.5,3.20913436]
[1745122702244,4.90426,1612.6,1612.5,6.41693436]
[1745122705149,4.90426,1612.6,1612.5,3.20913436]
[1745122705349,4.90426,1612.6,1612.5,6.41693436]
[1745122705856,4.90426,1612.6,1612.5,3.20913436]
[1745122706154,4.90426,1612.6,1612.5,6.41693436]
[1745122708650,4.90426,1612.6,1612.5,3.20913436]
[1745122708857,4.90426,1612.6,1612.5,6.41693436]
[1745122709553,4.90426,1612.6,1612.5,3.20913436]
[1745122709752,4.90426,1612.6,1612.5,6.41693436]
[1745122714253,3.912,1612.6,1612.5,7.40925436]
[1745122714460,4.90314,1612.8,1612.6,0.99222]
[1745122714655,4.90314,1612.8,1612.7,1.57593436]
[1745122714855,4.90314,1612.8,1612.7,2.41993436]
[1745122715060,4.90314,1612.8,1612.7,4.04313436]
[1745122716161,4.90314,1612.8,1612.7,3.2823]
[1745122716360,4.90314,1612.8,1612.7,4.04319508]
[1745122718556,6.63984,1612.8,1612.7,4.04319508]
[1745122722561,6.63984,1612.8,1612.7,5.03539508]
[1745122722867,3.911,1612.8,1612.7,5.03539508]
[1745122723764,4.90314,1612.8,1612.7,5.03539508]
[1745122725374,4.90314,1612.8,1612.7,8.24319508]
[1745122727574,2.5786,1612.9,1612.7,8.24315508]
[1745122727775,2.5786,1612.9,1612.8,2.45709508]
[1745122752192,2.5786,1612.9,1612.8,3.44923508]
[1745122752990,3.91,1613.0,1612.9,0.99208]
[1745122753281,4.90201,1613.0,1612.9,3.2449]
[1745122753683,4.90201,1613.0,1612.9,4.00579508]
[1745122754395,6.53621,1613.0,1612.9,4.00579508]
[1745122763903,4.90201,1613.0,1612.9,4.00579508]
[1745122764099,17.35057911,1613.2,1613.0,0.99201]
[1745122764400,17.35057911,1613.2,1613.1,0.76089508]
[1745122764604,17.35057911,1613.2,1613.1,2.40149508]
[1745122764802,19.04797911,1613.2,1613.1,4.07799508]
[1745122765503,18.05604911,1613.2,1613.1,4.07799508]
[1745122765801,19.04793911,1613.2,1613.1,4.07799508]
[1745122765996,16.35864911,1613.2,1613.1,5.06994508]
[1745122766199,16.35864911,1613.2,1613.1,4.93557706]
[1745122766404,16.35864911,1613.2,1613.1,5.92725752]
[1745122767307,17.35053911,1613.2,1613.1,5.92725752]
[1745122767800,4.90089,1613.2,1613.1,5.92725752]
[1745122770205,0.99186,1613.3,1613.2,0.99186]
[1745122770504,4.7585,1613.4,1613.2,2.64636]
[1745122770703,7.37383,1613.4,1613.3,0.812]